bitfinex-derivatives/quotes_SOLF0:USTF0_20220108
["timestamp","ask_amount","ask_price","bid_price","bid_amount"]
[1641608479017,27.66479,139.26,139.18,1.68108402]
[1641608479418,15.25871336,139.28,139.18,5.68108402]
[1641608479619,15.25871336,139.28,139.18,8.57408402]
[1641608479819,15.25871336,139.28,139.2,27.66479]
[1641608480320,3.39194293,139.28,139.2,27.66479]
[1641608481420,3.39194293,139.28,139.21,1.68108402]
[1641608482022,3.39194293,139.28,139.21,8.47408402]
[1641608482824,27.66479,139.29,139.21,8.47408402]
[1641608483025,27.66479,139.29,139.22,1.68108402]
[1641608485924,27.66479,139.29,139.23,27.66479]
[1641608486324,31.66479,139.31,139.23,27.66479]
[1641608486725,27.66479,139.31,139.23,27.66479]
[1641608486925,3.39238974,139.3,139.24,1.68108402]
[1641608487127,3.39238974,139.3,139.24,7.24508402]
[1641608487531,3.39238974,139.3,139.24,5.564]
[1641608492532,5.07656034,139.28,139.24,5.564]
[1641608492731,5.07656034,139.28,139.23,27.66479]
[1641608493233,5.07656034,139.28,139.23,32.74135034]
[1641608493433,5.07656034,139.28,139.23,24.58728047]
[1641608494737,5.07656034,139.28,139.23,5.07656034]
[1641608495436,5.07656034,139.27,139.22,6.76200407]
[1641608496235,5.07656034,139.27,139.22,5.07656034]
[1641608496436,5.07656034,139.25,139.21,56.42996034]
[1641608496636,5.07656034,139.25,139.21,5.07656034]
[1641608497137,5.07656034,139.26,139.22,5.07656034]
[1641608497737,9.07656034,139.26,139.22,5.07656034]
[1641608498138,5.07656034,139.26,139.23,5.07656034]
[1641608498338,27.66479,139.24,139.23,5.07656034]
[1641608498538,34.87979,139.24,139.23,5.07656034]
[1641608498739,38.87979,139.24,139.23,5.07656034]
[1641608498938,34.87979,139.24,139.22,1.68614896]
[1641608499339,34.87979,139.24,139.21,5.08385476]
[1641608500240,34.87979,139.24,139.2,1.68614896]
[1641608500443,34.87979,139.24,139.16,53.06284896]
[1641608501241,34.87979,139.24,139.17,1.68614896]
[1641608502544,27.66479,139.24,139.17,1.68614896]
[1641608507854,68.8244,139.26,139.17,1.68614896]
[1641608508358,27.66479,139.25,139.17,29.35093896]
[1641608508955,27.66479,139.25,139.18,1.68614896]
[1641608511158,27.66479,139.25,139.18,7.10214896]
[1641608511557,27.66479,139.25,139.2,4.0]
[1641608511757,15.25871336,139.27,139.18,7.10214896]
[1641608511958,15.25871336,139.27,139.2,4.0]
[1641608512157,53.6111,139.3,139.2,4.0]
[1641608512158,69.03611336,139.29,139.2,4.0]
[1641608512366,96.70090336,139.29,139.22,27.66479]
[1641608512558,96.70090336,139.29,139.22,33.94579]
[1641608513159,81.44219,139.29,139.22,33.94579]
[1641608515763,81.44219,139.29,139.23,1.68398629]
[1641608515964,27.66479,139.29,139.23,1.68398629]
[1641608517266,27.66479,139.29,139.22,32.64579]
[1641608517465,3.3921343,139.28,139.22,32.64579]
[1641608518067,27.66479,139.29,139.22,32.64579]
[1641608518967,27.66479,139.29,139.23,1.68468682]
[1641608520269,4.0,139.28,139.23,1.68468682]
[1641608520470,3.39332145,139.28,139.22,27.66479]
[1641608520871,7.39332145,139.28,139.22,27.66479]
[1641608521272,7.39332145,139.28,139.21,54.9112]
[1641608521473,22.65203481,139.28,139.21,54.9112]
[1641608522073,29.38503481,139.28,139.21,54.9112]
[1641608522475,27.66479,139.26,139.21,54.9112]
[1641608527978,27.66479,139.26,139.22,1.6854602]
[1641608529882,27.66479,139.26,139.21,1.6854602]
[1641608530283,31.66479,139.26,139.21,1.6854602]
[1641608530482,27.66479,139.26,139.21,1.6854602]
[1641608531284,31.66479,139.26,139.21,1.6854602]
[1641608531884,3.3976195,139.25,139.19,27.66479]
[1641608532085,7.3976195,139.25,139.18,50.425]
[1641608532285,4.0,139.24,139.16,15.20667183]
[1641608532484,27.66479,139.21,139.17,50.4577]
[1641608532784,33.87279,139.21,139.14,15.20667183]
[1641608532988,33.87279,139.21,139.14,70.09607183]
[1641608533787,33.87279,139.21,139.15,1.68472021]
[1641608533987,27.66479,139.21,139.15,1.68472021]
[1641608534189,54.4325,139.24,139.15,1.68472021]
[1641608534388,54.4325,139.24,139.16,27.66479]
[1641608535891,54.4325,139.24,139.17,1.68472021]
[1641608540091,54.4325,139.24,139.17,6.80172021]
[1641608540691,42.92350336,139.26,139.17,10.80172021]
[1641608540893,42.92350336,139.26,139.18,52.4526]
[1641608541293,27.66479,139.26,139.18,54.13732021]
[1641608541996,27.66479,139.26,139.19,1.68472021]
[1641608544599,27.66479,139.26,139.19,29.34951021]
[1641608545202,27.66479,139.26,139.2,1.68472021]
[1641608550608,3.39695629,139.25,139.2,1.68472021]
[1641608551206,3.39695629,139.25,139.19,1.68472021]
[1641608553012,10.81595629,139.25,139.19,1.68472021]
[1641608553512,3.39695629,139.24,139.19,1.68472021]
[1641608554412,7.419,139.25,139.19,1.68472021]
[1641608555012,7.419,139.25,139.18,52.4526]
[1641608555214,3.39796158,139.24,139.18,52.4526]
[1641608556116,15.25871336,139.26,139.19,1.68627623]
[1641608556317,6.901,139.25,139.19,1.68627623]
[1641608556620,6.901,139.25,139.18,52.4526]
[1641608556818,31.06377928,139.24,139.18,52.4526]
[1641608557818,27.66479,139.24,139.18,52.4526]
[1641608558020,27.66479,139.24,139.19,1.6866538]
[1641608558523,19.50826409,139.24,139.19,1.6866538]
[1641608560323,24.59458951,139.24,139.21,5.08632542]
[1641608560526,5.08632542,139.24,139.21,5.08632542]
[1641608565434,5.08632542,139.23,139.21,5.08632542]
[1641608566236,5.08632542,139.22,139.2,5.08632542]
[1641608567040,5.08632542,139.22,139.19,6.77297922]
[1641608568944,5.08632542,139.22,139.2,5.08632542]
[1641608572949,5.08632542,139.21,139.2,5.08632542]
[1641608573352,5.08632542,139.21,139.19,1.6866538]
[1641608573554,46.32339799,139.25,139.19,1.6866538]
[1641608573555,5.08632542,139.23,139.19,1.6866538]
[1641608574355,5.08632542,139.23,139.21,5.09186882]
[1641608577059,5.08632542,139.23,139.21,11.46186882]
[1641608577462,5.08632542,139.23,139.22,5.09186882]
[1641608578357,5.08632542,139.23,139.22,6.77852262]
[1641608579960,5.08632542,139.23,139.22,5.09186882]
[1641608580760,3.40364851,139.25,139.21,5.09186882]
[1641608580960,5.34,139.23,139.21,5.09186882]
[1641608581664,3.40364851,139.22,139.19,6.77852262]
[1641608582761,5.09208408,139.2,139.18,57.54446882]
[1641608582962,5.09208408,139.2,139.18,5.09186882]
[1641608583862,5.09208408,139.2,139.18,6.7798843]
[1641608584561,5.09208408,139.22,139.18,1.68801548]
[1641608584762,5.09208408,139.22,139.18,7.49701548]
[1641608586162,5.09208408,139.22,139.2,5.09135481]
[1641608588169,5.09208408,139.23,139.21,5.09135481]
[1641608591274,5.09208408,139.24,139.22,5.09135481]
[1641608591974,9.09208408,139.24,139.22,5.09135481]
[1641608592177,4.0,139.23,139.22,5.09135481]
[1641608592374,4.961,139.23,139.22,5.09135481]
[1641608592775,8.36464851,139.23,139.2,5.09135481]
[1641608593677,5.0910641,139.22,139.2,5.09135481]
[1641608595281,12.7860641,139.22,139.2,5.09135481]
[1641608596383,7.695,139.22,139.2,5.09135481]
[1641608596682,3.40307853,139.21,139.18,32.75614481]
[1641608597282,3.40307853,139.21,139.18,5.09135481]
[1641608597984,7.695,139.22,139.18,5.09135481]
[1641608598182,5.08962578,139.21,139.18,5.09135481]
[1641608598781,5.08962578,139.21,139.18,6.77852142]
[1641608600387,5.08962578,139.21,139.18,5.09135481]
[1641608601089,5.08962578,139.21,139.18,6.77852142]
[1641608602789,5.08962578,139.21,139.18,5.09135481]
[1641608603391,5.08962578,139.21,139.19,5.09135481]
[1641608606091,4.0,139.2,139.19,5.09135481]
[1641608606291,6.41,139.2,139.19,5.481e-05]
[1641608606491,10.41,139.2,139.19,5.481e-05]
[1641608606693,10.41,139.2,139.12,92.09024367]
[1641608606694,10.41,139.2,139.17,1.68722142]
[1641608607092,27.66479,139.19,139.17,1.68722142]
[1641608607692,27.66479,139.19,139.17,1.68716661]
[1641608607893,27.66479,139.19,139.13,1.68716661]
[1641608609998,31.66479,139.19,139.13,1.68716661]
[1641608611697,27.66479,139.19,139.13,1.68716661]
[1641608612297,6.41,139.2,139.13,1.68716661]
[1641608612499,52.4029,139.22,139.13,1.68716661]
[1641608612898,4.0,139.21,139.13,24.77429047]
[1641608613298,27.66479,139.2,139.13,24.77429047]
[1641608613900,27.66479,139.2,139.13,16.89383844]
[1641608614100,27.66479,139.2,139.13,1.68716661]
[1641608616303,27.66479,139.2,139.13,24.77330312]
[1641608618506,27.66479,139.2,139.13,1.68716661]
[1641608618708,19.50596173,139.2,139.13,1.68716661]
[1641608622310,19.50596173,139.2,139.13,24.77649737]
[1641608623111,15.25871336,139.23,139.14,4.0]
[1641608623409,15.25871336,139.23,139.13,32.49349737]
[1641608623410,15.25871336,139.23,139.15,55.8909]
[1641608623613,15.25871336,139.23,139.18,27.66479]
[1641608623816,73.74142299,139.25,139.18,27.66479]
[1641608624013,18.65912299,139.25,139.18,27.66479]
[1641608624913,3.40040963,139.25,139.19,1.68716661]
[1641608625415,3.40040963,139.25,139.19,55.09516661]
[1641608626418,3.40040963,139.25,139.2,1.68716661]
[1641608627920,3.40040963,139.25,139.19,53.408]
[1641608632523,7.40040963,139.25,139.17,27.66479]
[1641608632724,4.0,139.23,139.16,15.20667183]
[1641608633724,27.66479,139.21,139.16,15.20667183]
[1641608633924,32.62479,139.21,139.15,1.6836856]
[1641608634325,4.0,139.18,139.15,1.6836856]
[1641608634524,9.436,139.18,139.15,1.6836856]
[1641608635625,9.436,139.18,139.12,1.6836856]
[1641608635826,37.10079,139.18,139.12,1.6836856]
[1641608636728,4.0,139.17,139.12,1.6836856]
[1641608636926,37.10079,139.18,139.12,1.6836856]
[1641608637128,33.10079,139.18,139.12,1.6836856]
[1641608637326,33.10079,139.18,139.11,51.4956]
[1641608637327,3.39952758,139.17,139.11,51.4956]
[1641608637727,3.39952758,139.17,139.11,79.16039]
[1641608638129,27.66479,139.18,139.11,79.16039]
[1641608638628,4.0,139.15,139.08,42.87146183]
[1641608638828,8.999,139.15,139.08,42.87146183]
[1641608639029,4.999,139.15,139.08,42.87146183]
[1641608639628,4.999,139.15,139.08,27.66479]
[1641608639828,32.66379,139.15,139.08,27.66479]
[1641608641030,4.0,139.11,139.05,42.87146183]
[1641608641230,4.0,139.09,139.05,15.20667183]
[1641608641432,4.0,139.09,139.06,15.20667183]
[1641608641832,27.66479,139.07,139.06,15.20667183]
[1641608642631,27.66479,139.09,139.0,51.3067]
[1641608642632,4.0,139.12,139.01,15.20667183]
[1641608642836,4.0,139.09,139.01,20.96767183]
[1641608643030,4.0,139.08,139.01,20.96767183]
[1641608643231,4.0,139.12,139.01,20.96767183]
[1641608643432,4.0,139.12,139.01,5.761]
[1641608643835,27.66479,139.09,139.01,5.761]
[1641608644736,27.66479,139.09,139.0,66.51337183]
[1641608645634,27.66479,139.09,139.0,51.3067]
[1641608646034,31.66479,139.09,139.0,51.3067]
[1641608646437,27.66479,139.09,139.0,51.3067]
[1641608650139,27.66479,139.09,139.02,27.66479]
[1641608651741,55.6777,139.1,139.02,27.66479]
[1641608656647,14.74,139.12,139.02,31.66479]
[1641608656846,4.0,139.12,139.02,31.66479]
[1641608657048,4.0,139.12,139.02,27.66479]
[1641608657849,4.0,139.12,139.03,1.67232205]
[1641608660251,27.66479,139.11,139.03,1.67232205]
[1641608660454,35.14479,139.11,139.03,1.67232205]
[1641608661654,35.14479,139.11,139.03,16.87899388]
[1641608662255,35.14479,139.11,139.03,1.67232205]
[1641608665258,7.48,139.11,139.03,16.87899388]
[1641608665561,4.0,139.12,139.03,16.87899388]
[1641608665960,4.0,139.12,139.04,50.2571]
[1641608666563,31.66479,139.12,139.04,77.92189]
[1641608666761,31.66479,139.12,139.06,5.08388809]
[1641608666962,5.08388809,139.11,139.06,5.08388809]
[1641608667765,47.74867809,139.12,139.08,5.08388809]
[1641608667965,32.74867809,139.12,139.08,5.08388809]
[1641608668163,5.08388809,139.12,139.08,5.08388809]
[1641608668363,5.08388809,139.12,139.08,9.85988809]
[1641608668564,5.08388809,139.12,139.11,27.66479]
[1641608668766,15.25871336,139.15,139.11,33.91979]
[1641608668966,10.57611336,139.15,139.11,33.91979]
[1641608669164,10.86,139.16,139.11,33.91979]
[1641608669366,10.86,139.16,139.11,35.59211205]
[1641608669766,4.0,139.18,139.11,35.59211205]
[1641608669967,4.0,139.18,139.11,7.92732205]
[1641608670166,4.0,139.18,139.11,1.67232205]
[1641608670366,10.74,139.2,139.11,1.67232205]
[1641608670367,4.0,139.19,139.11,1.67232205]
[1641608670566,52.0651,139.2,139.12,1.67232205]
[1641608670768,64.53145194,139.2,139.12,1.67232205]
[1641608671368,27.66479,139.21,139.12,1.67232205]
[1641608672767,3.39630169,139.2,139.14,27.66479]
[1641608672968,3.39630169,139.2,139.14,32.92979]
[1641608673572,27.66479,139.21,139.14,32.92979]
[1641608673771,34.8458607,139.23,139.14,32.92979]
[1641608674372,3.39201581,139.22,139.14,32.92979]
[1641608674673,3.39201581,139.22,139.17,27.66479]
[1641608674873,3.39201581,139.22,139.17,34.07979]
[1641608676275,3.39201581,139.22,139.17,27.66479]
[1641608676476,31.66479,139.23,139.17,27.66479]
[1641608678481,27.66479,139.23,139.17,27.66479]
[1641608678683,3.38703109,139.22,139.17,27.66479]
[1641608679081,10.7,139.25,139.2,4.0]
[1641608679282,10.7,139.25,139.2,11.492]
[1641608679681,40.45624367,139.27,139.2,11.492]
[1641608680081,89.10444367,139.31,139.2,11.492]
[1641608680281,40.45624367,139.31,139.21,4.0]
[1641608680481,40.45624367,139.31,139.2,7.492]
[1641608680682,40.45624367,139.31,139.26,27.66479]
[1641608680882,40.45624367,139.31,139.26,33.14279]
[1641608681283,40.45624367,139.31,139.26,5.478]
[1641608681485,44.45624367,139.31,139.26,5.478]
[1641608681785,27.66479,139.33,139.15,4.0]
[1641608681786,4.0,139.27,139.15,4.0]
[1641608681983,4.0,139.26,139.14,105.29390644]
[1641608682183,4.89,139.27,139.14,105.29390644]
[1641608682184,8.89,139.27,139.15,4.0]
[1641608682384,4.89,139.27,139.16,51.8642]
[1641608682586,4.89,139.27,139.16,57.9662]
[1641608682790,32.55479,139.27,139.19,27.66479]
[1641608682989,27.66479,139.27,139.19,33.60179]
[1641608683688,31.66479,139.27,139.19,33.60179]
[1641608683887,27.66479,139.27,139.19,33.60179]
[1641608684088,27.66479,139.27,139.19,25.44468181]
[1641608684390,31.66479,139.27,139.19,25.44468181]
[1641608684588,27.66479,139.27,139.19,25.44468181]
[1641608685291,4.0,139.28,139.19,5.937]
[1641608686796,27.66479,139.26,139.19,5.937]
[1641608688297,27.66479,139.26,139.18,27.66479]
[1641608689399,4.0,139.25,139.18,27.66479]
[1641608689600,4.0,139.25,139.16,79.52899]
[1641608689800,49.7666,139.25,139.16,79.52899]
[1641608690400,53.7666,139.25,139.16,79.52899]
[1641608690602,49.7666,139.25,139.16,79.52899]
[1641608692607,55.1006,139.25,139.16,79.52899]
[1641608692805,4.0,139.23,139.16,79.52899]
[1641608693006,27.66479,139.22,139.14,27.66479]
[1641608693206,4.0,139.2,139.11,50.2075]
[1641608695011,27.66479,139.17,139.11,50.2075]
[1641608695611,4.0,139.2,139.11,50.2075]
[1641608695811,53.7454,139.21,139.11,60.6305]
[1641608696511,53.7454,139.21,139.11,56.6305]
[1641608697111,81.41019,139.21,139.11,84.29529]
[1641608698612,81.41019,139.21,139.11,34.08779]
[1641608698811,240.79211605,139.21,139.06,40.45624367]
[1641608699011,27.66479,139.1,139.06,40.45624367]
[1641608699212,34.59779,139.1,139.06,40.45624367]
[1641608699814,34.59779,139.1,139.04,68.06795875]
[1641608700513,6.933,139.1,139.04,68.06795875]
[1641608700716,27.66479,139.12,139.04,68.06795875]
[1641608701014,27.66479,139.12,139.06,27.66479]
[1641608701214,15.24525875,139.14,139.06,27.66479]
[1641608702115,54.2689,139.15,139.06,27.66479]
[1641608705231,54.2689,139.15,139.09,27.66479]
[1641608705417,27.66479,139.16,139.09,27.66479]
[1641608705619,38.48479,139.16,139.09,27.66479]
[1641608706820,42.48479,139.16,139.09,27.66479]
[1641608707018,42.48479,139.16,139.06,27.66479]
[1641608707218,27.66479,139.13,139.06,27.66479]
[1641608709221,27.66479,139.13,139.06,55.32958]
[1641608711325,10.82,139.16,139.05,15.24525875]
[1641608711725,27.66479,139.15,139.08,27.66479]
[1641608714326,19.24525875,139.2,139.08,27.66479]
[1641608714527,15.24525875,139.2,139.1,4.0]
[1641608714728,15.24525875,139.2,139.12,4.0]
[1641608714926,64.99965875,139.22,139.12,11.587]
[1641608715626,64.99965875,139.22,139.12,7.587]
[1641608715832,64.99965875,139.22,139.13,54.4773]
[1641608716027,4.0,139.18,139.12,27.66479]
[1641608716228,6.216,139.18,139.12,27.66479]
[1641608717427,15.24525875,139.2,139.12,27.66479]
[1641608717829,27.66479,139.19,139.12,27.66479]
[1641608718429,33.88979,139.19,139.12,27.66479]
[1641608720131,3.39408638,139.18,139.12,27.66479]
[1641608721533,3.39408638,139.18,139.11,53.183]
[1641608722134,3.39408638,139.18,139.11,80.84779]
[1641608722535,46.30413513,139.19,139.11,80.84779]
[1641608723835,3.39408638,139.18,139.12,1.68519098]
[1641608724035,4.0,139.16,139.12,1.68519098]
[1641608724235,27.66479,139.16,139.12,1.68519098]
[1641608724535,31.66479,139.16,139.12,1.68519098]
[1641608724735,31.66479,139.16,139.1,1.68519098]
[1641608724736,3.39408638,139.15,139.1,1.68519098]
[1641608724935,8.66408638,139.15,139.1,1.68519098]
[1641608725538,8.66408638,139.15,139.09,27.66479]
[1641608725740,3.39408638,139.14,139.09,25.64479]
[1641608725938,3.39408638,139.14,139.07,54.1385]
[1641608726141,27.66479,139.12,139.07,54.1385]
[1641608726337,34.05779,139.12,139.07,54.1385]
[1641608726537,34.05779,139.12,139.08,1.68475406]
[1641608728939,34.05779,139.12,139.07,54.1385]
[1641608729640,39.14511373,139.12,139.08,5.08732373]
[1641608729841,39.14511373,139.12,139.08,6.77232367]
[1641608730941,11.48032373,139.12,139.08,6.77232367]
[1641608732243,5.08732373,139.12,139.08,6.77232367]
[1641608733344,32.75211373,139.12,139.08,6.77232367]
[1641608739353,27.66479,139.12,139.08,6.77232367]
[1641608742554,32.75211373,139.12,139.08,6.77232367]
[1641608743355,5.08732373,139.12,139.08,6.77232367]
[1641608743755,32.75211373,139.12,139.08,6.77232367]
[1641608743955,27.66479,139.12,139.08,6.77232367]
[1641608745355,34.10179,139.12,139.08,6.77232367]
[1641608746258,5.08612092,139.11,139.07,59.22582373]
[1641608747258,34.10179,139.12,139.04,42.91004875]
[1641608747458,34.10179,139.12,139.05,49.6793]
[1641608747859,5.0866441,139.11,139.07,5.0866441]
[1641608748657,34.10179,139.12,139.06,1.68460418]
[1641608749158,6.437,139.12,139.06,1.68460418]
[1641608749359,95.43004875,139.14,139.06,1.68460418]
[1641608749560,5.08857427,139.11,139.07,5.08857427]
[1641608750359,3.40331207,139.13,139.08,5.08879112]
[1641608751060,5.09202133,139.11,139.06,1.68460418]
[1641608751863,3.40331207,139.13,139.08,5.0923734]
[1641608752563,5.09237752,139.11,139.06,1.68460418]
[1641608753365,3.40331207,139.13,139.06,1.68460418]
[1641608753564,5.09855669,139.1,139.09,5.09855669]
[1641608754370,18.64857082,139.13,139.07,27.66479]
[1641608755367,5.09869692,139.1,139.09,5.09869692]
[1641608755567,18.64857082,139.13,139.09,5.09869692]
[1641608755967,18.64857082,139.13,139.11,27.66479]
[1641608756167,40.45624367,139.16,139.11,27.66479]
[1641608756572,15.28774567,139.17,139.11,27.66479]
[1641608757572,3.40658963,139.17,139.12,1.68872996]
[1641608758474,3.40658963,139.17,139.09,50.2762]
[1641608758675,23.09174148,139.17,139.1,1.6871089]
[1641608759476,3.40658963,139.16,139.09,50.2762]
[1641608759975,27.66479,139.15,139.09,50.2762]
[1641608760275,27.66479,139.15,139.1,1.68691528]
[1641608760977,3.40658963,139.14,139.09,50.2762]
[1641608761179,9.36058963,139.14,139.09,50.2762]
[1641608761778,5.954,139.14,139.09,50.2762]
[1641608761979,3.40361365,139.13,139.09,42.11310538]
[1641608762679,51.7572,139.18,139.1,1.687693]
[1641608762880,40.45624367,139.19,139.1,7.205693]
[1641608763480,3.40003843,139.2,139.11,1.687693]
[1641608763779,4.0,139.18,139.11,1.687693]
[1641608763980,27.66479,139.16,139.11,1.687693]
[1641608765281,3.40003843,139.15,139.1,1.687693]
[1641608765479,9.80203843,139.15,139.1,1.687693]
[1641608766680,6.402,139.15,139.1,1.687693]
[1641608769184,3.40108275,139.14,139.1,1.687693]
[1641608774493,9.67408275,139.14,139.1,1.687693]
[1641608775193,6.273,139.14,139.1,1.687693]
[1641608779903,78.97769,139.15,139.1,1.687693]
[1641608781004,51.3129,139.15,139.1,1.687693]
[1641608781209,3.40380706,139.14,139.1,1.687693]
[1641608781404,9.92080706,139.14,139.1,1.687693]
[1641608782004,6.517,139.14,139.1,1.687693]
[1641608783606,4.0,139.13,139.1,1.687693]
[1641608784206,3.40664521,139.12,139.09,1.687693]
[1641608785305,3.40664521,139.13,139.08,27.66479]
[1641608787007,7.40664521,139.13,139.08,27.66479]
[1641608787206,22.68508639,139.13,139.08,27.66479]
[1641608788007,18.68508639,139.12,139.08,27.66479]
[1641608788906,18.68508639,139.13,139.08,27.66479]
[1641608790908,22.68508639,139.13,139.08,11.79549]
[1641608791108,18.68508639,139.13,139.08,11.79549]
[1641608791309,22.68508639,139.13,139.08,11.79549]
[1641608791510,22.68508639,139.13,139.02,15.27844118]
[1641608791810,27.66479,139.07,139.02,15.27844118]
[1641608792008,34.31879,139.07,139.02,15.27844118]
[1641608792209,34.31879,139.07,139.01,64.47634118]
[1641608793210,34.31879,139.07,139.02,1.68541623]
[1641608795412,6.654,139.07,139.02,1.68541623]
[1641608796012,27.66479,139.06,139.02,1.68541623]
[1641608813035,50.3948,139.08,139.02,1.68541623]
[1641608816037,5.09543183,139.07,139.05,5.09543183]
[1641608816244,27.66479,139.06,139.05,5.09543183]
[1641608817837,5.09543183,139.07,139.05,5.09543183]
[1641608818439,27.66479,139.06,139.05,5.09543183]
[1641608820237,32.46279,139.06,139.05,5.09543183]
[1641608820441,37.55822183,139.06,139.05,5.09543183]
[1641608822341,32.46279,139.06,139.03,15.27844118]
[1641608823443,37.56407381,139.06,139.05,5.10128381]
[1641608824745,37.56407381,139.06,139.02,24.86409268]
[1641608824746,4.798,139.06,139.02,24.86409268]
[1641608825047,15.27844118,139.09,139.02,28.86409268]
[1641608825245,15.27844118,139.09,139.03,27.66479]
[1641608826949,15.27844118,139.09,139.07,5.09998299]
[1641608827151,5.09998299,139.08,139.07,5.09998299]
[1641608827750,5.09998299,139.08,139.04,68.41644118]
[1641608828251,31.07445752,139.1,139.05,1.68541623]
[1641608829252,5.09908951,139.07,139.06,5.09908951]
[1641608829853,42.94323118,139.1,139.05,1.69001531]
[1641608831253,5.0989382,139.07,139.06,5.0989382]
[1641608832053,42.94323118,139.1,139.05,1.68979115]
[1641608832753,5.09819966,139.07,139.06,5.09819966]
[1641608833354,5.09819966,139.07,139.04,53.138]
[1641608833555,27.66479,139.1,139.05,1.68967168]
[1641608834456,5.09766125,139.08,139.06,5.09766125]
[1641608834955,27.66479,139.1,139.05,1.6895351]
[1641608835759,27.66479,139.1,139.04,53.138]
[1641608835958,5.09736565,139.08,139.06,5.09736565]
[1641608836158,9.76636565,139.08,139.06,5.09736565]
[1641608836557,4.669,139.08,139.07,5.09721312]
[1641608837362,4.669,139.08,139.06,5.09704129]
[1641608837562,9.76604129,139.08,139.06,5.09704129]
[1641608838062,4.669,139.08,139.04,53.138]
[1641608838960,9.76577397,139.08,139.06,5.09677397]
[1641608839160,5.09677397,139.08,139.06,5.09677397]
[1641608839460,27.66479,139.1,139.04,53.138]
[1641608839662,5.09647419,139.09,139.07,5.09647419]
[1641608840362,27.66479,139.1,139.05,1.68932771]
[1641608841267,32.75882046,139.1,139.08,5.09403046]
[1641608841865,5.09403046,139.1,139.08,5.09403046]
[1641608842065,5.09422778,139.09,139.07,5.09422778]
[1641608842665,7.34,139.1,139.05,1.68932771]
[1641608843465,5.09418262,139.09,139.07,5.09418262]
[1641608844166,11.34,139.1,139.05,1.68932771]
[1641608844367,3.4063289,139.09,139.05,5.09477783]
[1641608845167,26.61844118,139.1,139.03,27.66479]
[1641608845367,5.09507026,139.07,139.03,27.66479]
[1641608845568,12.05707026,139.07,139.03,27.66479]
[1641608846069,6.962,139.07,139.04,6.78359211]
[1641608846970,12.05701294,139.07,139.02,1.68843838]
[1641608847672,12.05701294,139.07,139.03,27.66479]
[1641608847870,6.962,139.07,139.04,5.09501829]
[1641608848570,12.05701038,139.07,139.04,1.68843838]
[1641608849371,6.962,139.07,139.03,27.66479]
[1641608849571,5.0952671,139.06,139.03,5.0952671]
[1641608849772,32.7600571,139.06,139.03,5.0952671]
[1641608849974,36.7600571,139.06,139.03,5.0952671]
[1641608850473,31.66479,139.06,139.0,15.27844118]
[1641608850674,5.09585309,139.04,139.02,5.09585309]
[1641608850874,10.58585309,139.04,139.02,5.09585309]
[1641608851474,5.49,139.04,138.99,24.86585575]
[1641608851875,27.66479,139.03,138.99,24.86585575]
[1641608852476,27.66479,139.03,139.02,5.09231073]
[1641608852675,25.88008093,139.03,139.02,5.09231073]
[1641608853074,25.88008093,139.03,139.01,5.08946936]
[1641608855779,29.88008093,139.03,139.01,5.08946936]
[1641608855979,29.88008093,139.03,138.99,1.68823069]
[1641608856179,27.66479,139.02,138.99,1.68823069]
[1641608856378,4.0,139.01,138.98,15.27844118]
[1641608856580,6.159,139.01,138.98,15.27844118]
[1641608856781,6.159,139.01,138.96,15.27844118]
[1641608857781,6.159,139.01,138.95,15.27844118]
[1641608858383,76.22999,139.02,138.95,15.27844118]
[1641608858982,76.22999,139.02,138.95,7.04]
[1641608859181,27.66479,139.02,138.95,11.04]
[1641608859382,27.66479,139.02,138.95,14.22752246]
[1641608859783,27.66479,139.02,138.96,4.0]
[1641608859984,27.66479,139.02,138.97,15.27844118]
[1641608861687,27.66479,139.02,138.97,23.15090321]
[1641608863088,27.66479,139.02,138.96,71.12453067]
[1641608863288,32.96979,139.02,138.96,71.12453067]
[1641608863690,5.305,139.02,138.96,71.12453067]
[1641608864089,5.305,139.02,138.96,75.12453067]
[1641608864390,5.305,139.02,138.96,102.78932067]
[1641608864588,27.66479,139.04,138.96,102.78932067]
[1641608865495,27.66479,139.04,138.97,23.15135347]
[1641608867094,27.66479,139.04,138.96,94.70473118]
[1641608867293,27.66479,139.04,138.96,98.70473118]